bitfinex-derivatives/quotes_BTCF0:USTF0_20251210
["timestamp","ask_amount","ask_price","bid_price","bid_amount"]
[1765391471953,0.09782,92410.0,92409.0,0.07354]
[1765391472147,0.07597,92410.0,92409.0,0.07354]
[1765391472343,0.07597,92410.0,92409.0,0.0843616]
[1765391472344,0.03772,92410.0,92409.0,0.0843616]
[1765391472550,0.07597,92410.0,92409.0,0.0843616]
[1765391472756,0.09782,92410.0,92409.0,0.07354]
[1765391473059,0.0867921,92405.0,92404.0,0.3608]
[1765391473255,0.0887921,92405.0,92404.0,0.39698]
[1765391473454,0.07797,92405.0,92404.0,0.07354]
[1765391473652,0.002,92405.0,92404.0,0.07354]
[1765391473857,0.10282,92410.0,92409.0,0.07354]
[1765391474558,0.10082,92410.0,92409.0,0.03618]
[1765391474757,0.07597,92403.0,92402.0,0.0843624]
[1765391475350,0.0867931,92396.0,92395.0,0.00016233]
[1765391475755,0.0867931,92396.0,92395.0,0.03634233]
[1765391475956,0.0867931,92396.0,92395.0,0.00016233]
[1765391478652,0.0877931,92396.0,92395.0,0.00016233]
[1765391479262,0.0897931,92396.0,92395.0,0.00016233]
[1765391483882,0.0897931,92396.0,92376.0,0.3608]
[1765391483883,0.07597,92377.0,92376.0,0.3608]
[1765391484068,0.07597,92377.0,92376.0,0.0108254]
[1765391484069,0.0867955,92377.0,92376.0,0.0108254]
[1765391484871,0.0867955,92377.0,92376.0,0.0128254]
[1765391485277,0.0867955,92377.0,92376.0,0.002]
[1765391485482,0.0867955,92377.0,92376.0,0.004]
[1765391485676,0.0867955,92377.0,92376.0,0.0148255]
[1765391486083,0.0867955,92377.0,92376.0,0.0883655]
[1765391486285,0.03772,92377.0,92376.0,0.0883655]
[1765391486587,0.03772,92385.0,92384.0,0.0843646]
[1765391486778,0.09782,92385.0,92384.0,0.0843646]
[1765391486974,0.09782,92385.0,92384.0,0.0470046]
[1765391487175,0.09782,92385.0,92384.0,0.0843646]
[1765391487570,0.01098609,92386.0,92385.0,0.07354]
[1765391487775,0.04870609,92386.0,92385.0,0.07354]
[1765391488078,0.00016169,92386.0,92385.0,0.07354]
[1765391488994,0.00116169,92386.0,92385.0,0.07354]
[1765391489374,0.010823,92398.0,92385.0,0.07354]
[1765391489375,0.0783321,92406.0,92405.0,0.0464721]
[1765391489687,0.0783321,92406.0,92393.0,0.0108234]
[1765391489688,0.1001813,92412.0,92411.0,0.0832514]
[1765391489881,0.08936,92412.0,92411.0,0.0832514]
[1765391490486,0.00108208,92415.0,92414.0,0.07243]
[1765391491684,0.00108208,92415.0,92414.0,0.43323]
[1765391491887,0.00108208,92415.0,92414.0,0.43423]
[1765391492274,0.00108208,92415.0,92414.0,0.43323]
[1765391492479,0.00108208,92415.0,92414.0,0.43423]
[1765391492873,0.00108208,92415.0,92414.0,0.43523]
[1765391493279,0.39449,92429.0,92428.0,0.03678]
[1765391493588,0.42831,92429.0,92428.0,0.03678]
[1765391494185,0.06751,92421.0,92420.0,0.07243]
[1765391494484,0.06751,92421.0,92420.0,0.10471664]
[1765391495490,0.06751,92421.0,92420.0,0.03228664]
[1765391495788,0.06751,92421.0,92420.0,0.0108203]
[1765391495985,0.06751,92421.0,92420.0,0.0842503]
[1765391496189,0.06751,92421.0,92420.0,0.11612359]
[1765391496389,0.03369,92421.0,92420.0,0.11612359]
[1765391496574,0.38265,92430.0,92420.0,0.11612359]
[1765391496575,0.45016,92430.0,92429.0,0.0832493]
[1765391496887,0.3608,92430.0,92429.0,0.11512259]
[1765391497089,0.3608,92439.0,92438.0,0.0108182]
[1765391497389,0.00108179,92440.0,92439.0,0.07243]
[1765391497587,0.00108179,92440.0,92439.0,0.10424219]
[1765391498484,0.03477179,92440.0,92439.0,0.10424219]
[1765391499193,0.00108179,92440.0,92439.0,0.10424219]
[1765391499487,0.08952179,92440.0,92439.0,0.10424219]
[1765391499689,0.09052179,92440.0,92439.0,0.03181219]
[1765391499991,0.06751,92433.0,92432.0,0.03678]
[1765391500187,0.0783288,92433.0,92432.0,0.10420926]
[1765391500881,0.06751,92433.0,92432.0,0.10420926]
[1765391501085,0.0783288,92433.0,92432.0,0.10420926]
[1765391501281,0.0783288,92433.0,92432.0,0.03177926]
[1765391502388,0.0783288,92433.0,92432.0,0.09758536]
[1765391502689,0.0783288,92433.0,92432.0,0.03177926]
[1765391504386,0.0992592,92430.0,92429.0,0.00016233]
[1765391504587,0.3608,92433.0,92430.0,0.0108192]
[1765391504886,0.06751,92433.0,92432.0,0.07343]
[1765391505084,0.06751,92433.0,92432.0,0.10672951]
[1765391505476,0.06751,92433.0,92432.0,0.03429951]
[1765391505677,0.06751,92433.0,92432.0,0.03329951]
[1765391506091,0.06751,92433.0,92432.0,0.10572951]
[1765391506589,0.06751,92433.0,92432.0,0.10672951]
[1765391506791,0.06751,92433.0,92432.0,0.03429951]
[1765391507287,0.06751,92433.0,92432.0,0.07107951]
[1765391507591,0.06751,92433.0,92432.0,0.10672951]
[1765391508188,0.00108179,92440.0,92439.0,0.1029681]
[1765391508491,0.00108179,92440.0,92439.0,0.13626761]
[1765391509184,0.00208179,92440.0,92439.0,0.13626761]
[1765391509585,0.00308179,92440.0,92439.0,0.13626761]
[1765391509788,0.3608,92458.0,92439.0,0.13626761]
[1765391509789,0.3608,92458.0,92457.0,0.083246]
[1765391510091,0.00021628,92471.0,92464.0,0.0832452]
[1765391510283,0.00021628,92471.0,92464.0,0.11654471]
[1765391510987,0.0347715,92465.0,92464.0,0.11654471]
[1765391511291,0.0685915,92465.0,92464.0,0.13471706]
[1765391511689,0.0685915,92465.0,92464.0,0.10572951]
[1765391512190,0.0685915,92465.0,92464.0,0.13471706]
[1765391512389,0.0685915,92465.0,92464.0,0.10572951]
[1765391512696,0.0685915,92465.0,92464.0,0.11654471]
[1765391513091,0.0685915,92465.0,92464.0,0.14553226]
[1765391513295,0.0685915,92465.0,92464.0,0.11654471]
[1765391513490,0.0685915,92465.0,92464.0,0.0832452]
[1765391513798,0.0010815,92465.0,92464.0,0.11617301]
[1765391515087,0.0010815,92465.0,92464.0,0.47697301]
[1765391516286,0.00021628,92471.0,92470.0,0.1020845]
[1765391516490,0.0220112,92490.0,92489.0,0.0832423]
[1765391516491,0.0010812,92490.0,92489.0,0.0832423]
[1765391516689,0.0010812,92490.0,92489.0,0.11617011]
[1765391517289,0.0010812,92490.0,92489.0,0.15478558]
[1765391517486,0.0108099,92510.0,92509.0,0.07243]
[1765391517696,0.0108099,92510.0,92508.0,0.08324]
[1765391517697,0.06751,92509.0,92508.0,0.08324]
[1765391518290,0.0757997,92511.0,92510.0,0.03325]
[1765391518696,0.06499,92501.0,92500.0,0.42746215]
[1765391518895,0.06499,92501.0,92500.0,0.46007837]
[1765391519100,0.03233,92501.0,92500.0,0.46007837]
[1765391519399,0.06499,92501.0,92500.0,0.46007837]
[1765391519602,0.06499,92501.0,92500.0,0.09927837]
[1765391520093,0.06499,92501.0,92500.0,0.06602837]
[1765391520288,0.06499,92501.0,92500.0,0.00016215]
[1765391520494,0.06599,92501.0,92500.0,0.00016215]
[1765391520894,0.42679,92501.0,92500.0,0.00016215]
[1765391521095,0.08575,92480.0,92479.0,0.4273]
[1765391521390,0.0965633,92480.0,92479.0,0.03325]
[1765391521799,0.0965633,92480.0,92479.0,0.0665]
[1765391521994,0.08575,92480.0,92479.0,0.0665]
[1765391522191,0.08575,92480.0,92479.0,0.0695]
[1765391522391,0.06515156,92489.0,92488.0,0.0440624]
[1765391522585,0.06515156,92489.0,92488.0,0.03325]
[1765391522791,0.0108128,92484.0,92480.0,0.0108133]
[1765391522992,0.0965633,92480.0,92479.0,0.006]
[1765391523201,0.08575,92480.0,92479.0,0.03925]
[1765391523494,0.00016156,92489.0,92488.0,0.0665]
[1765391523697,0.00016156,92489.0,92488.0,0.0773124]
[1765391523892,0.00016156,92489.0,92488.0,0.47035009]
[1765391524092,0.00016156,92489.0,92488.0,0.12893009]
[1765391524289,0.08575,92510.0,92509.0,0.0440599]
[1765391524495,0.08575,92510.0,92509.0,0.0773099]
[1765391524694,0.06499,92510.0,92509.0,0.0773099]
[1765391525089,0.08575,92510.0,92509.0,0.0773099]
[1765391525294,0.03341091,92515.0,92514.0,0.0665]
[1765391525501,0.06607091,92515.0,92514.0,0.0665]
[1765391526003,0.00108091,92515.0,92514.0,0.0665]
[1765391526691,0.00108091,92515.0,92514.0,0.4273]
[1765391527704,0.00108091,92515.0,92514.0,0.4333]
[1765391528099,0.00108091,92515.0,92514.0,0.4303]
[1765391528301,0.00108091,92515.0,92514.0,0.4333]
[1765391528490,0.06607091,92515.0,92514.0,0.006]
[1765391529208,0.00108091,92515.0,92514.0,0.0725]
[1765391529893,0.00108091,92515.0,92514.0,0.0695]
[1765391530091,0.00108091,92515.0,92514.0,0.0705]
[1765391530298,0.00108091,92515.0,92514.0,0.0685]
[1765391530693,0.00108091,92515.0,92514.0,0.0665]
[1765391530898,0.00108091,92515.0,92514.0,0.0685]
[1765391531498,0.00108091,92515.0,92514.0,0.0675]
[1765391531707,0.02076,92540.0,92515.0,0.0108091]
[1765391531708,0.0315664,92540.0,92515.0,0.0108091]
[1765391531898,0.06499,92536.0,92535.0,0.0773068]
[1765391532799,0.03233,92536.0,92535.0,0.0773068]
[1765391533407,0.03233,92536.0,92527.0,0.3608]
[1765391533408,0.002,92540.0,92539.0,0.0665]
[1765391533798,0.0108047,92554.0,92553.0,0.0665]
[1765391533996,0.0108047,92554.0,92551.0,0.0108049]
[1765391533997,0.06078,92552.0,92551.0,0.041785]
[1765391534199,0.0108047,92554.0,92553.0,0.06226]
[1765391534399,0.3716047,92554.0,92553.0,0.06226]
[1765391534706,0.06078,92547.0,92546.0,0.06226]
[1765391535296,0.0108069,92535.0,92533.0,0.0289472]
[1765391535605,0.0715875,92530.0,92529.0,0.03098]
[1765391535795,0.06078,92530.0,92529.0,0.09644977]
[1765391535995,0.0715875,92530.0,92529.0,0.09644977]
[1765391536204,0.06078,92530.0,92529.0,0.09644977]
[1765391536994,0.42158,92530.0,92529.0,0.03618977]
[1765391537200,0.42158,92530.0,92529.0,0.002]
[1765391537595,0.42158,92530.0,92529.0,0.005]
[1765391537793,0.42158,92530.0,92526.0,0.00016215]
[1765391537794,0.06078,92527.0,92526.0,0.00016215]
[1765391538594,0.06078,92527.0,92526.0,0.03114215]
[1765391538799,0.06078,92527.0,92526.0,0.07323005]
[1765391539108,0.3608,92530.0,92526.0,0.07323005]
[1765391539109,0.3608,92531.0,92529.0,0.0730676]
[1765391539308,0.3608,92531.0,92530.0,0.09600275]
[1765391539309,0.39135,92531.0,92530.0,0.09600275]
[1765391539609,0.0715878,92527.0,92526.0,0.00216215]
[1765391539999,0.0715878,92527.0,92526.0,0.00116215]
[1765391540408,0.0715878,92527.0,92526.0,0.00016215]
[1765391541107,0.06078,92527.0,92526.0,0.06242215]
[1765391541302,0.0715878,92527.0,92526.0,0.06242215]
[1765391541502,0.06078,92527.0,92526.0,0.06242215]
[1765391541809,0.3608,92531.0,92530.0,0.06226]
[1765391541998,0.3608,92535.0,92534.0,0.073067]
[1765391542516,0.42158,92535.0,92534.0,0.073067]
[1765391542695,0.42158,92535.0,92531.0,0.0108074]
[1765391542901,0.06078,92532.0,92531.0,0.0730674]
[1765391543095,0.06078,92532.0,92531.0,0.10640337]
[1765391544212,0.3608,92535.0,92531.0,0.10640337]
[1765391544213,0.3608,92535.0,92534.0,0.073067]
[1765391544513,0.42158,92535.0,92534.0,0.10640297]
[1765391544699,0.39135,92535.0,92534.0,0.10640297]
[1765391544899,0.4323869,92535.0,92534.0,0.10640297]
[1765391545309,0.4323869,92535.0,92534.0,0.09559597]
[1765391545503,0.4323869,92535.0,92534.0,0.06431597]
[1765391545703,0.4323869,92535.0,92534.0,0.03333597]
[1765391546609,0.4333869,92535.0,92534.0,0.03333597]
[1765391547403,0.7941869,92535.0,92534.0,0.03333597]
[1765391547809,0.0715878,92527.0,92526.0,0.00016215]
[1765391548010,0.4323878,92527.0,92526.0,0.03389709]
[1765391549012,0.4323878,92527.0,92526.0,0.03589709]
[1765391549804,0.4323878,92527.0,92526.0,0.03689709]
[1765391550004,0.4323878,92527.0,92526.0,0.01131222]
[1765391550304,0.0708789,92518.0,92517.0,0.0289925]
[1765391550503,0.0708795,92513.0,92512.0,0.0289925]
[1765391550904,0.3716089,92518.0,92506.0,0.0289925]
[1765391550905,0.06007,92507.0,92506.0,0.0289925]
[1765391551110,0.0708803,92506.0,92505.0,0.0398029]
[1765391551309,0.0708803,92506.0,92505.0,0.0108104]
[1765391551818,0.0708803,92506.0,92505.0,0.0416604]
[1765391552124,0.0708795,92513.0,92512.0,0.06277]
[1765391552419,0.06007,92509.0,92508.0,0.01081]
[1765391552613,0.07088,92508.0,92507.0,0.02905915]
[1765391552820,0.06007,92508.0,92507.0,0.09182915]
[1765391553317,0.06007,92508.0,92507.0,0.06277]
[1765391554206,0.06007,92508.0,92507.0,0.06577]
[1765391555120,0.06007,92508.0,92507.0,0.06877]
[1765391556221,0.42087,92518.0,92517.0,0.06277]
[1765391556421,0.3608,92518.0,92517.0,0.06277]
[1765391556605,0.3608,92527.0,92521.0,0.0735785]
[1765391557006,0.0108073,92532.0,92521.0,0.10268164]
[1765391557007,0.3608,92530.0,92521.0,0.10268164]
[1765391557308,0.0108076,92529.0,92521.0,0.0735785]
[1765391558212,0.0108076,92529.0,92520.0,0.01378]
[1765391558213,0.0414264,92539.0,92522.0,0.0108084]
[1765391558420,0.00108062,92540.0,92539.0,0.0735764]
[1765391558626,0.03170062,92540.0,92539.0,0.0735764]
[1765391559315,0.00108062,92540.0,92539.0,0.10265462]
[1765391559519,0.00108062,92540.0,92539.0,0.11217272]
[1765391559722,0.00108062,92540.0,92539.0,0.0735764]
[1765391560220,0.00308062,92540.0,92539.0,0.11232712]
[1765391560428,0.00408062,92540.0,92539.0,0.11232712]
[1765391560623,0.00208062,92540.0,92539.0,0.11232712]
[1765391560824,0.00208062,92540.0,92539.0,0.0735764]
[1765391561020,0.00108062,92540.0,92539.0,0.0745764]
[1765391562125,0.00108062,92540.0,92539.0,0.1066436]
[1765391562822,0.06115062,92540.0,92539.0,0.06211926]
[1765391563023,0.06115062,92540.0,92539.0,0.0330672]
[1765391563614,0.06115062,92540.0,92539.0,0.0958372]
[1765391563821,0.07195692,92540.0,92539.0,0.0958372]
[1765391564931,0.07195692,92540.0,92539.0,0.0330672]
[1765391565622,0.0708774,92531.0,92530.0,0.00016215]
[1765391565817,0.0708774,92531.0,92530.0,0.03150114]
[1765391566018,0.4316774,92531.0,92530.0,0.00016215]
[1765391566724,0.4316774,92531.0,92530.0,0.00216215]
[1765391566925,0.4316774,92531.0,92530.0,0.00416215]
[1765391567434,0.4316774,92531.0,92530.0,0.00216215]
[1765391568331,0.4316774,92531.0,92530.0,0.00016215]
[1765391568518,0.4326774,92531.0,92530.0,0.00016215]
[1765391571222,0.28775705,92540.0,92530.0,0.00016215]
[1765391571223,0.3608,92563.0,92530.0,0.48016215]
[1765391571421,0.01768,92565.0,92564.0,0.0108035]
[1765391571822,0.01768,92565.0,92564.0,0.04189098]
[1765391572023,0.07775,92565.0,92564.0,0.0108035]
[1765391572718,0.08175,92565.0,92564.0,0.0108035]
[1765391573129,0.07975,92565.0,92564.0,0.0108035]
[1765391573428,0.08075,92565.0,92564.0,0.0108035]
[1765391574037,0.08075,92565.0,92564.0,0.7324035]
[1765391574233,0.08075,92565.0,92564.0,0.7951735]
[1765391574234,0.02068,92565.0,92564.0,0.7951735]
[1765391575227,0.08075,92565.0,92564.0,0.7951735]
[1765391577122,0.02068,92565.0,92564.0,0.7951735]
[1765391577321,0.003,92565.0,92564.0,0.7951735]
[1765391579638,0.16609,92565.0,92564.0,0.7951735]
[1765391579932,0.1768934,92565.0,92564.0,0.7216]
[1765391580837,0.1738944,92556.0,92555.0,0.00016205]
[1765391582123,0.1738944,92556.0,92555.0,0.00116205]
[1765391582344,0.1738944,92556.0,92555.0,0.00216205]
[1765391583142,0.1758944,92556.0,92555.0,0.00116205]
[1765391584231,0.1788944,92556.0,92555.0,0.00016205]
[1765391584430,0.1768944,92556.0,92555.0,0.00016205]
[1765391584645,0.1788944,92556.0,92555.0,0.00016205]
[1765391584827,0.1778944,92556.0,92555.0,0.00016205]
[1765391585836,0.1778944,92556.0,92555.0,0.07765205]
[1765391586033,0.1278944,92556.0,92555.0,0.00016205]
[1765391586541,0.1386988,92556.0,92555.0,0.00016205]
[1765391590338,0.1738961,92542.0,92541.0,0.3608]
[1765391591649,0.1738961,92542.0,92541.0,0.3628]
[1765391592239,0.1758961,92542.0,92541.0,0.3618]
[1765391592641,0.2079971,92533.0,92532.0,0.00016205]
[1765391592947,0.2079977,92528.0,92527.0,0.3608]
[1765391593145,0.207999,92517.0,92516.0,0.3608]
[1765391594253,0.207999,92517.0,92516.0,0.46169]
[1765391594439,0.207999,92517.0,92516.0,0.3608]
[1765391594636,0.207999,92517.0,92516.0,0.3658]
[1765391595147,0.207999,92517.0,92516.0,0.56337]
[1765391595740,0.19719,92517.0,92516.0,0.56337]
[1765391596134,0.1115785,92522.0,92521.0,0.19757]
[1765391596339,0.2079985,92522.0,92521.0,0.19757]
[1765391596645,0.19719,92522.0,92521.0,0.19757]
[1765391597350,0.19719,92522.0,92521.0,0.20057]
[1765391598755,0.19719,92522.0,92521.0,0.2113785]
[1765391598944,0.19719,92522.0,92521.0,0.20057]
[1765391600851,0.19719,92522.0,92521.0,0.10389]
[1765391601243,0.19719,92522.0,92521.0,0.20057]
[1765391603952,0.19719,92522.0,92521.0,0.003]
[1765391605549,0.19719,92522.0,92521.0,0.20057]
[1765391606953,0.19719,92522.0,92521.0,0.10389]
[1765391607542,0.0108082,92524.0,92521.0,0.10389]
[1765391607543,0.0108082,92524.0,92523.0,0.19757]
[1765391607749,0.2079982,92524.0,92523.0,0.19757]
[1765391608746,0.2079982,92524.0,92523.0,0.10189]
[1765391609065,0.2079982,92524.0,92523.0,0.10289]
[1765391609750,0.00016205,92526.0,92525.0,0.19378]
[1765391609955,0.00016205,92526.0,92525.0,0.58746301]
[1765391611759,0.00016205,92526.0,92525.0,0.58846301]
[1765391612061,0.19532205,92526.0,92525.0,0.58846301]
[1765391612258,0.19532205,92526.0,92525.0,0.39468301]
[1765391612561,0.19532205,92526.0,92525.0,0.3618]
[1765391612761,0.19532205,92526.0,92525.0,0.4547]
[1765391612964,0.19532205,92526.0,92525.0,0.55558]
[1765391613358,0.19532205,92526.0,92525.0,0.4547]
[1765391613655,0.19532205,92526.0,92525.0,0.3618]
[1765391613857,0.19532205,92526.0,92525.0,0.4547]
[1765391614456,0.19532205,92526.0,92525.0,0.3618]
[1765391614662,0.19532205,92526.0,92525.0,0.001]
[1765391614851,0.19532205,92526.0,92525.0,0.19478]
[1765391615571,0.19532205,92526.0,92525.0,0.001]
[1765391617263,0.19532205,92526.0,92525.0,0.19478]
[1765391617563,0.00016205,92526.0,92525.0,0.19478]
[1765391617758,0.00016205,92526.0,92525.0,0.22678168]
[1765391618868,0.11107995,92526.0,92525.0,0.22678168]
[1765391619066,0.00016205,92526.0,92525.0,0.22678168]
[1765391619265,0.10027205,92526.0,92525.0,0.22678168]
[1765391619452,0.19532205,92526.0,92525.0,0.22678168]
[1765391619654,0.10027205,92526.0,92525.0,0.22678168]
[1765391620156,0.19532205,92526.0,92525.0,0.22678168]
[1765391624060,0.10027205,92526.0,92525.0,0.22678168]
[1765391624775,0.00016205,92526.0,92525.0,0.22678168]
[1765391625373,0.00016205,92526.0,92525.0,0.19478]
[1765391629273,0.19532205,92526.0,92525.0,0.001]
[1765391630179,0.19532205,92526.0,92507.0,0.00016205]
[1765391630180,0.2059698,92510.0,92507.0,0.00016205]
[1765391630878,0.2059698,92510.0,92509.0,0.19386867]
[1765391631062,0.28368472,92518.0,92517.0,0.19378]
[1765391631267,0.2059689,92518.0,92517.0,0.55458]
[1765391631467,0.19516,92518.0,92517.0,0.55458]
[1765391631671,0.20612995,92526.0,92525.0,0.19378]
[1765391632980,0.19532205,92526.0,92525.0,0.55458]
[1765391633184,0.00016205,92526.0,92525.0,0.55458]
[1765391633367,0.10027205,92526.0,92525.0,0.55458]
[1765391633667,0.00016205,92526.0,92525.0,0.55458]
[1765391635366,0.00016205,92526.0,92525.0,0.58530709]
[1765391636175,0.00016205,92526.0,92525.0,0.58630709]
[1765391637778,0.04878812,92547.0,92525.0,0.58630709]
[1765391637779,0.04878812,92547.0,92546.0,0.2045856]
[1765391637986,0.0108042,92559.0,92554.0,0.0108047]
[1765391638285,0.0108042,92559.0,92558.0,0.18264]
[1765391638286,0.1879142,92559.0,92558.0,0.18264]
[1765391638467,0.1879137,92563.0,92562.0,0.18264]
[1765391639673,0.1879141,92559.0,92558.0,0.08823]
[1765391640379,0.1939141,92559.0,92558.0,0.18264]
[1765391640978,0.17711,92558.0,92557.0,0.3608]
[1765391641680,0.0188041,92559.0,92558.0,0.18264]
[1765391641681,0.008,92559.0,92558.0,0.18264]
[1765391642386,0.009,92559.0,92558.0,0.18264]
[1765391642575,0.003,92559.0,92558.0,0.18264]
[1765391642781,0.0923,92559.0,92558.0,0.18264]
[1765391643084,0.18011,92559.0,92558.0,0.18264]
[1765391643682,0.18011,92559.0,92557.0,0.3608]
[1765391643683,0.1879142,92558.0,92557.0,0.3608]
[1765391644180,0.0863,92558.0,92557.0,0.54344]
[1765391644374,0.17711,92558.0,92557.0,0.54344]
[1765391644576,0.17711,92558.0,92557.0,0.3608]
[1765391644980,0.1879147,92554.0,92553.0,0.00016205]
[1765391646586,0.1919147,92554.0,92553.0,0.00016205]
[1765391647188,0.1949147,92554.0,92553.0,0.00016205]
[1765391647788,0.1949147,92554.0,92553.0,0.08839205]
[1765391647976,0.1949147,92554.0,92553.0,0.00016205]
[1765391651178,0.1916858,92544.0,92543.0,0.3608]
[1765391651383,0.1916868,92536.0,92535.0,0.3608]
[1765391651783,0.1916868,92536.0,92535.0,0.54132]
[1765391651986,0.1916868,92536.0,92535.0,0.5521269]
[1765391652300,0.0546041,92560.0,92535.0,0.5521269]
[1765391652301,0.010806,92543.0,92542.0,0.010806]
[1765391652589,0.010806,92543.0,92542.0,0.191326]
[1765391653185,0.010806,92543.0,92542.0,0.18052]
[1765391653391,0.00016205,92545.0,92544.0,0.18052]
[1765391653687,0.09170205,92545.0,92544.0,0.54132]
[1765391653890,0.00016205,92545.0,92544.0,0.54132]
[1765391654482,0.00216205,92545.0,92544.0,0.54132]
[1765391655285,0.00216205,92545.0,92544.0,0.57384551]
[1765391655993,0.00116205,92545.0,92544.0,0.57384551]
[1765391656494,0.00016205,92545.0,92544.0,0.57484551]
[1765391656694,0.00016205,92545.0,92544.0,0.57584551]
[1765391658397,0.09170205,92545.0,92544.0,0.57584551]
[1765391658790,0.18104205,92545.0,92544.0,0.57584551]
[1765391659486,0.00016205,92545.0,92544.0,0.57584551]
[1765391661287,0.00108033,92565.0,92544.0,0.57584551]
[1765391661288,0.0108045,92556.0,92547.0,0.05347]
[1765391661487,0.0108045,92556.0,92555.0,0.54132]
[1765391662193,0.0108045,92556.0,92555.0,0.5521242]
[1765391662493,0.0118045,92556.0,92555.0,0.5521242]
[1765391662694,0.0128045,92556.0,92555.0,0.5521242]
[1765391662995,0.1043445,92556.0,92555.0,0.5521242]
[1765391663195,0.1936845,92556.0,92555.0,0.54132]
[1765391663697,0.0128045,92556.0,92555.0,0.54132]
[1765391665298,0.1936845,92556.0,92555.0,0.54132]
[1765391667291,0.1936845,92556.0,92546.0,0.00016205]
[1765391667292,0.0108054,92548.0,92546.0,0.00016205]
[1765391667593,0.18088,92547.0,92546.0,0.00016205]
[1765391667792,0.002,92556.0,92555.0,0.18052]
[1765391667998,0.0128044,92556.0,92555.0,0.18052]
[1765391668599,0.001,92556.0,92555.0,0.18052]
[1765391668900,0.00124206,92565.0,92564.0,0.1778035]
[1765391668901,0.01204546,92565.0,92564.0,0.1778035]
[1765391669102,0.00124206,92565.0,92564.0,0.1778035]
[1765391670101,0.00424206,92565.0,92564.0,0.1778035]
[1765391670997,0.00624206,92565.0,92564.0,0.1778035]
[1765391671598,0.00324206,92565.0,92564.0,0.1778035]
[1765391671899,0.00524206,92565.0,92564.0,0.1778035]
[1765391672291,0.00200206,92565.0,92564.0,0.1778035]
[1765391672499,2.06e-06,92565.0,92564.0,0.1778035]
[1765391673909,0.3608,92588.0,92586.0,0.0108008]
[1765391673910,0.0108008,92587.0,92586.0,0.0108008]
[1765391674098,0.0108008,92587.0,92586.0,0.1778008]
[1765391675107,0.0158008,92587.0,92586.0,0.1778008]
[1765391675312,0.005,92587.0,92586.0,0.5386008]
[1765391675503,0.00108004,92590.0,92589.0,0.1778006]
[1765391675705,0.08667004,92590.0,92589.0,0.1778006]
[1765391676395,0.08667004,92590.0,92589.0,0.167]
[1765391676596,0.17254004,92590.0,92589.0,0.167]
[1765391676813,0.17146,92587.0,92586.0,0.5278]
[1765391677306,0.0108006,92589.0,92588.0,0.167]
[1765391677612,0.1822606,92589.0,92588.0,0.167]
[1765391679609,0.1842606,92589.0,92588.0,0.167]
[1765391679811,0.09661363,92626.0,92625.0,0.167]
[1765391680116,0.08559,92627.0,92626.0,0.167]
[1765391680316,0.00107945,92640.0,92626.0,0.167]
[1765391680609,0.17146,92636.0,92635.0,0.167]
[1765391680812,0.1822551,92636.0,92635.0,0.167]
[1765391681211,0.08559,92620.0,92619.0,0.13153]
[1765391681410,0.04138945,92640.0,92619.0,0.229187]
[1765391681411,0.3169503,92640.0,92619.0,0.229187]
[1765391681615,0.0963864,92626.0,92625.0,0.167]
[1765391681807,0.08559,92626.0,92625.0,0.5278]
[1765391682113,0.0963863,92626.0,92625.0,0.5278]
[1765391682414,0.1822563,92626.0,92625.0,0.5278]
[1765391682811,0.182257,92620.0,92619.0,0.21839]
[1765391683115,0.010797,92620.0,92619.0,0.21839]
[1765391683712,0.096387,92620.0,92619.0,0.21839]
[1765391683911,0.1822573,92617.0,92616.0,0.00016194]
[1765391685011,0.1822573,92617.0,92616.0,0.00216194]
[1765391685612,0.1822573,92617.0,92616.0,0.00016194]
[1765391685815,0.1832573,92617.0,92616.0,0.00016194]
[1765391689433,0.1832573,92617.0,92616.0,0.08702194]
[1765391690030,0.0973873,92617.0,92616.0,0.16716194]
[1765391690230,0.1832573,92617.0,92616.0,0.16716194]
[1765391690431,0.1832573,92617.0,92616.0,0.08702194]
[1765391690631,0.1832573,92617.0,92616.0,0.16716194]
[1765391691539,0.0117973,92617.0,92616.0,0.16716194]
[1765391691937,0.0973873,92617.0,92616.0,0.16716194]
[1765391692337,0.1832573,92617.0,92616.0,0.16716194]
[1765391692538,0.1832573,92617.0,92616.0,0.00016194]
[1765391692740,0.1832573,92617.0,92616.0,0.16716194]
[1765391693628,0.0117973,92617.0,92616.0,0.16716194]
[1765391693941,0.001,92617.0,92616.0,0.17795934]
[1765391696441,0.001,92617.0,92616.0,0.21083373]
[1765391698136,0.0107965,92625.0,92624.0,0.1819665]
[1765391698338,0.0107965,92625.0,92624.0,0.5427665]
[1765391698540,0.0107965,92625.0,92624.0,0.5756672]
[1765391699038,0.01187405,92640.0,92639.0,0.16815]
[1765391699240,0.09469405,92640.0,92639.0,0.5726455]
[1765391699441,0.17168405,92640.0,92639.0,0.5726455]
[1765391700240,0.17168405,92640.0,92639.0,0.5618507]
[1765391700445,0.17168405,92640.0,92639.0,0.5726455]
[1765391700942,0.17168405,92640.0,92639.0,0.5618507]
[1765391701140,0.17168405,92640.0,92639.0,0.3937007]
[1765391701340,0.17468405,92640.0,92639.0,0.0329007]
[1765391701647,0.17768405,92640.0,92639.0,0.0329007]
[1765391702144,0.64642936,92640.0,92639.0,0.00790332]
[1765391702745,0.1706064,92625.0,92620.0,0.0107969]
[1765391703143,0.1706064,92625.0,92624.0,0.52895]
[1765391704646,0.1716064,92625.0,92624.0,0.52895]
[1765391704848,0.1716064,92625.0,92624.0,0.44464]
[1765391705248,0.15981,92623.0,92622.0,0.02909004]
[1765391705449,0.15981,92620.0,92619.0,0.15977004]
[1765391705751,0.15981,92620.0,92619.0,0.24408004]
[1765391706047,0.15981,92620.0,92619.0,0.02909004]
[1765391706248,0.15981,92618.0,92617.0,0.02909004]
[1765391706544,0.1706073,92617.0,92616.0,0.02925198]
[1765391707253,0.1706073,92617.0,92616.0,0.00016194]
[1765391708150,0.1706073,92617.0,92616.0,0.00316194]
[1765391708853,0.1706073,92617.0,92616.0,0.17131194]
[1765391709350,0.1706073,92617.0,92616.0,0.00316194]
[1765391709553,0.1706073,92617.0,92616.0,0.08700194]
[1765391709850,0.0107973,92617.0,92616.0,0.17131194]
[1765391711149,0.078,101500.0,92616.0,0.17131194]
[1765391711150,0.15981,92621.0,92620.0,0.010797]
[1765391711340,0.08282,92621.0,92620.0,0.178947]
[1765391711541,0.0107968,92622.0,92621.0,0.16815]
[1765391711945,0.1706068,92622.0,92621.0,0.16815]
[1765391712941,0.1706068,92622.0,92621.0,0.16915]
[1765391713462,0.0936168,92622.0,92621.0,0.16915]